Cogmind - Beta 11 @@@ ROGUE MODE // 2022.04.08 @ 23:55:14 Player: ktur Result: Destroyed by S-43 Plague with Heavy Machine Gun Performance ------------- Evolutions (6) 3000 Regions Visited (25) 5000 Robots Destroyed (118) 590 Value Destroyed (4579) 4579 Prototype IDs (47) 940 Alien Tech Used (1) 200 Bonus (2474) 2474 TOTAL SCORE: 16783 Bonus ------- Follower Combat Kills 374 Entered DSFs 500 Met Data Miner 300 Met Zhirov 300 Met Warlord at Base 500 MAIN.C Attacked Warlord 500 Cogmind --------- Core Integrity 0/1150 Matter 36/300 Energy 100/100 System Corruption 0% Temperature Cool (0) Movement Walking (100) Location -3/Proximity Caves Parts ------- > --- POWER (1) -------- (None) > --- PROPULSION (6) --- Enhanced Biometal Leg Enhanced Biometal Leg Cooled Antigrav System Electron Diverter > --- UTILITY (10) ----- Large Storage Unit Enhanced Optical Array Advanced Signal Interpreter 0b10 Decoder Chip [Generic] 0b10 Decoder Chip [Generic] Experimental Targeting Computer Experimental Armor Integrity Analyzer Graphene Brace > --- WEAPON (2) ------- Micro-nuke Launcher > --- INVENTORY (15) --- Vortex Chain Reactor Experimental Energy Well (600) Experimental Targeting Computer Advanced ECM Suite Experimental Focal Shield Improved Energy Mantle Transdimensional Reconstructor Vortex Cannon (26) Vortex Cannon (26) Peak State ------------ > --- POWER ------------ (None) > --- PROPULSION ------- Enhanced Biometal Leg Enhanced Biometal Leg Cooled Antigrav System Electron Diverter Electron Diverter > --- UTILITY ---------- Large Storage Unit Enhanced Optical Array Advanced Signal Interpreter 0b10 Decoder Chip [Generic] 0b10 Decoder Chip [Generic] Experimental Targeting Computer Experimental Armor Integrity Analyzer Graphene Brace Assault Drone Bay > --- WEAPON ----------- Lance > --- INVENTORY -------- Vortex Chain Reactor Experimental Energy Well Experimental Targeting Computer Advanced ECM Suite Experimental Focal Shield Improved Energy Mantle Transdimensional Reconstructor Vortex Cannon Vortex Cannon Micro-nuke Launcher [Rating: 120] Favorites ----------- Power F-cell Engine Engine F-cell Engine Power Core Micro Fission Core Reactor Micro Antimatter Reactor Propulsion Titanium Leg Treads Armored Treads Leg Titanium Leg Hover Unit Gyrokinetic Inverter Flight Unit Field Propulsion Drive Utility Large Storage Unit Device Improved Cooling System Storage Large Storage Unit Processor Improved Targeting Computer Hackware Authchip [Weapon] Protection Hardened Medium Armor Plating Weapon Advanced Beam Rifle Energy Gun Advanced Beam Rifle Energy Cannon Proton Cannon Ballistic Gun Autogun Launcher Rocket Launcher Slashing Weapon Phasing Sabre Piercing Weapon Lance Special Melee Weapon Improved Datajack Build | -11 -10 -9 -8 -8 -7 -7 -7 -7 -6 -6 -6 -5 -5 -5 -5 -5 -5 -4 -4 -4 -4 -4 -4 -4 -3 ------- Run | Scr Mat Mat Mat Sto Fac Low Low Dat Pro Fac DSF Fac Was Fac Upp Upp Zhi Pro Fac Was Fac Upp Upp War Pro Slots Evolved 12 | . . 2 2 . 2 . . . . 2 . 2 . . . . . . 2 . . . . . . Power . | . . . . . . . . . . . . . . . . . . . . . . . . . . Propulsion 4 | . . 1 1 . . . . . . . . 1 . . . . . . 1 . . . . . . Utility 8 | . . 1 1 . 2 . . . . 2 . 1 . . . . . . 1 . . . . . . Weapon . | . . . . . . . . . . . . . . . . . . . . . . . . . . Parts Attached 225 | 7 3 9 3 23 12 8 3 . 4 3 16 39 8 7 5 7 5 . 8 4 19 8 3 16 5 Power 16 | 1 1 . . 4 1 . . . . . . 4 . 1 . . 1 . . 1 2 . . . . Engine 9 | 1 1 . . 3 1 . . . . . . 2 . . . . . . . . 1 . . . . Core 4 | . . . . 1 . . . . . . . 2 . 1 . . . . . . . . . . . Reactor 3 | . . . . . . . . . . . . . . . . . 1 . . 1 1 . . . . Propulsion 55 | 3 . 4 1 6 4 . 2 . 2 . 5 5 1 2 . 1 . . 3 1 5 . 2 6 2 Treads 13 | 2 . 4 1 4 . . . . . . . 2 . . . . . . . . . . . . . Leg 20 | 1 . . . . 4 . 2 . 2 . 5 3 . . . . . . . . . . . 1 2 Wheel . | . . . . . . . . . . . . . . . . . . . . . . . . . . Hover 8 | . . . . 1 . . . . . . . . 1 2 . 1 . . . . . . . 3 . Flight 14 | . . . . 1 . . . . . . . . . . . . . . 3 1 5 . 2 2 . Utility 103 | 1 2 3 2 4 7 3 1 . 1 3 7 22 6 4 1 1 4 . 4 . 11 6 . 9 1 Device 46 | . . 1 1 3 3 . . . . 2 2 11 1 1 . . 3 . 2 . 8 4 . 3 1 Storage 7 | 1 1 1 . . . . . . . . . 2 . . . . . . . . . 1 . 1 . Processor 20 | . . . 1 . . 2 . . . 1 1 3 2 . . . . . 2 . 2 1 . 5 . Hackware 10 | . . . . . . . . . . . . 4 3 1 . 1 1 . . . . . . . . Protection 20 | . 1 1 . 1 4 1 1 . 1 . 4 2 . 2 1 . . . . . 1 . . . . Artifact . | . . . . . . . . . . . . . . . . . . . . . . . . . . Weapon 51 | 2 . 2 . 9 . 5 . . 1 . 4 8 1 . 4 5 . . 1 2 1 2 1 1 2 Energy Gun 20 | 2 . 1 . 8 . 3 . . . . 2 4 . . . . . . . . . . . . . Energy Cannon 8 | . . . . . . . . . 1 . 2 3 . . . . . . . 1 . . . 1 . Ballistic Gun 3 | . . 1 . 1 . . . . . . . . . . . 1 . . . . . . . . . Ballistic Cannon . | . . . . . . . . . . . . . . . . . . . . . . . . . . Launcher 10 | . . . . . . 2 . . . . . 1 . . 2 1 . . . 1 . . 1 . 2 Special Weapon . | . . . . . . . . . . . . . . . . . . . . . . . . . . Impact Weapon . | . . . . . . . . . . . . . . . . . . . . . . . . . . Slashing Weapon 3 | . . . . . . . . . . . . . 1 . 1 1 . . . . . . . . . Piercing Weapon 4 | . . . . . . . . . . . . . . . . . . . 1 . 1 2 . . . Special Melee Weapon 3 | . . . . . . . . . . . . . . . 1 2 . . . . . . . . . Unidentified Prototypes 22 | . . . . 6 . . . . 1 . 1 2 1 1 . . 3 . . . . . . 7 . Corrupted Parts 2 | . . . . . . . . . . . . . 1 . . . . . . . 1 . . . . System Corruption 15 | . . . . . . . . . . . . . 9 . . . . . . . 6 . . . . Parts Lost 65 | . . 1 1 3 . 1 3 . 1 . 9 11 3 . 1 8 . 3 6 . 2 1 5 . 6 Power 3 | . . . . 1 . . . . . . . 1 . . . 1 . . . . . . . . . Propulsion 28 | . . . . . . . 2 . 1 . 4 4 3 . . 2 . 1 2 . 2 1 2 . 4 Utility 25 | . . . . 1 . 1 1 . . . 4 5 . . . 3 . 2 4 . . . 3 . 1 Weapon 9 | . . 1 1 1 . . . . . . 1 1 . . 1 2 . . . . . . . . 1 Highest Loss Streak 7 | . . 1 1 1 . 1 2 . 1 . 5 7 3 . 1 4 . 3 2 . 2 1 3 . 6 To Critical Strikes 1 | . . . . . . . . . . . . . . . . . . . 1 . . . . . . Average Slot Usage (%) 87 | . 90 99 97 97 99 99 100 100 99 100 85 91 54 75 72 68 53 62 45 47 74 70 57 67 79 Engine 4 | . 14 11 9 4 7 7 7 7 7 6 6 4 . . . . . . . . 1 1 . . . Treads 6 | . 28 32 35 35 . . . . . . . . 2 . . . . . . . . . . . . Leg 14 | . . . . . 29 30 30 30 29 26 22 27 2 . . . . . . . . . . . 6 Hover 1 | . . . . . . . . . . . . . 2 16 17 14 5 4 . . . . . 3 6 Flight 2 | . . . . . . . . . . . . . . . . . . . 5 8 16 12 11 14 11 Device 8 | . . 11 9 7 14 7 7 7 7 13 9 10 1 . . . 4 10 3 . 12 18 10 7 6 Storage 5 | . 14 11 9 9 7 7 7 7 7 6 6 4 1 . . . . . . . . 1 . 2 5 Processor 18 | . . . 6 9 7 18 23 23 23 26 20 23 26 27 23 23 17 17 22 21 22 17 21 32 36 Hackware 3 | . . . . . . . . . . . . . 11 18 17 16 19 22 12 10 7 5 5 2 . Protection 5 | . 5 11 9 9 15 10 7 7 7 6 7 3 . 1 5 1 . . . . . 5 3 . . Energy Gun 8 | . 28 19 18 13 15 14 15 15 11 6 2 6 2 . . . . . . . . . . . . Energy Cannon 1 | . . . . . . . . . 3 6 6 3 . . . . . . . 2 3 . . . . Naked Turns . | . . . . . . . . . . . . . . . . . . . . . . . . . . Heaviest Build 76 | 12 20 34 33 41 54 54 43 43 53 58 73 76 44 24 25 25 6 6 3 24 42 30 13 27 35 Greatest Support 94 | 40 40 60 80 84 68 68 68 59 59 58 81 94 46 48 48 48 11 11 36 30 44 29 18 27 60 Greatest Overweight (x) 2 | . . . . . . . . . . . 2 1 2 1 . . . . . . . 2 . . . Average Overweight (x) . | . . . . . . . . . . . . . . . . . . . . . . . . . . Largest Inventory Capacity 15 | 8 10 15 15 15 15 15 15 15 15 15 15 15 15 5 5 5 5 5 5 5 5 15 5 15 15 Average Capacity 11 | 7 8 13 15 15 15 15 15 15 15 15 15 14 8 5 5 5 5 5 5 5 5 7 5 9 15 Most Carried 15 | 6 10 15 15 15 15 15 15 15 15 14 15 15 15 5 5 5 5 5 5 5 5 12 5 15 15 Average Carried 11 | 3 8 13 14 14 13 14 14 15 14 13 12 14 7 4 4 5 4 5 5 4 5 6 4 8 12 Final Capacity 15 | 8 10 15 15 15 15 15 15 15 15 15 15 15 5 5 5 5 5 5 5 5 5 5 5 15 15 Final Carried 15 | 6 10 15 15 15 15 15 15 15 15 14 15 15 5 5 5 5 5 5 5 5 5 5 5 15 10 Class Distribution -------------------- 72% | Mutant 11% | Scavenger-Mutant 7% | Scavenger-Skirmisher 4% | Sprinter 3% | Hacker-Mutant Dominant Class ---------------- Mutant | -10/Materials Mutant | -9/Materials Mutant | -8/Materials Mutant | -8/Storage Mutant | -7/Factory Mutant | -7/Lower Caves Mutant | -7/Lower Caves Mutant | -7/Data Miner Mutant | -6/Proximity Caves Mutant | -6/Factory Scavenger-Mutant | -6/DSF Scavenger-Mutant | -5/Factory Mutant | -5/Waste Mutant | -5/Factory Mutant | -5/Upper Caves Mutant | -5/Upper Caves Hacker-Mutant | -5/Zhirov Hacker-Mutant | -4/Proximity Caves Mutant | -4/Factory Mutant | -4/Waste Mutant | -4/Factory Mutant | -4/Upper Caves Mutant | -4/Upper Caves Sprinter | -4/Warlord Sprinter | -3/Proximity Caves Resources | -11 -10 -9 -8 -8 -7 -7 -7 -7 -6 -6 -6 -5 -5 -5 -5 -5 -5 -4 -4 -4 -4 -4 -4 -4 -3 ----------- Run | Scr Mat Mat Mat Sto Fac Low Low Dat Pro Fac DSF Fac Was Fac Upp Upp Zhi Pro Fac Was Fac Upp Upp War Pro Matter Collected 2606 | 198 51 119 47 370 120 174 25 . 40 . 117 484 . 106 124 101 . 78 83 . 244 71 10 10 34 Remotely . | . . . . . . . . . . . . . . . . . . . . . . . . . . Salvage Created 4922 | . 51 119 203 1025 378 215 360 . 92 . 674 1434 . . 54 88 . . . . 157 . 38 . 34 Parts 220 | . 4 12 8 45 9 16 8 . 5 . 36 56 . . 4 6 . . . . 4 . 4 . 3 Haulers Intercepted 5 | . 1 . . 1 . . . . . . 1 1 . . . . . . . . 1 . . . . Recyclers Shooed 2 | . . . . . 2 . . . . . . . . . . . . . . . . . . . . Parts Field Recycled . | . . . . . . . . . . . . . . . . . . . . . . . . . . Retrieved Matter . | . . . . . . . . . . . . . . . . . . . . . . . . . . Parts Self-Destructed 50 | . . . . . . 15 6 . 11 . . . . . 3 5 . . . . . . 4 2 4 Prevented 5 | . . . . . . . . . . . . . . . 1 2 . . . . . . . 2 . Kills | -11 -10 -9 -8 -8 -7 -7 -7 -7 -6 -6 -6 -5 -5 -5 -5 -5 -5 -4 -4 -4 -4 -4 -4 -4 -3 ------- Run | Scr Mat Mat Mat Sto Fac Low Low Dat Pro Fac DSF Fac Was Fac Upp Upp Zhi Pro Fac Was Fac Upp Upp War Pro Combat Hostiles Destroyed 105 | . . 5 3 16 7 10 7 . 4 . 11 31 . . 2 3 . . . . 1 . 4 . 1 Melee 3 | . . . . . . . . . . . . . . . . 1 . . . . 1 . . . 1 Guns 59 | . . 4 2 16 6 2 7 . 4 . . 17 . . . 1 . . . . . . . . . Cannons 19 | . . . . . . . . . . . 11 8 . . . . . . . . . . . . . AOE 15 | . . . 1 . . 7 . . . . . . . . 2 1 . . . . . . 4 . . Classes Destroyed 13 | . 1 2 2 3 . 1 1 . . . 2 1 . . . . . . . . . . . . . Worker 6 | . . . 2 3 . . . . . . . 1 . . . . . . . . . . . . . Hauler 5 | . 1 . . 1 . . . . . . 1 1 . . . . . . . . 1 . . . . Recycler 1 | . . . . 1 . . . . . . . . . . . . . . . . . . . . . Operator 1 | . . . . 1 . . . . . . . . . . . . . . . . . . . . . Swarmer 41 | . . 4 . . . 7 . . 4 . . 16 . . 2 3 . . . . . . 4 . 1 Grunt 38 | . . . 3 11 5 1 6 . . . 6 6 . . . . . . . . . . . . . Brawler 1 | . . . . . . . 1 . . . . . . . . . . . . . . . . . . Duelist 1 | . . . . . . 1 . . . . . . . . . . . . . . . . . . . Sentry 10 | . . 1 . 3 2 1 . . . . 1 1 . . . . . . . . 1 . . . . Specialist 3 | . . . . . . . . . . . 3 . . . . . . . . . . . . . . Hunter 4 | . . . . 2 . . . . . . . 2 . . . . . . . . . . . . . Programmer 6 | . . . . . . . . . . . . 6 . . . . . . . . . . . . . Heavy 1 | . . . . . . . . . . . 1 . . . . . . . . . . . . . . Best Kill Streak 5 | . 1 4 5 5 3 4 4 . 4 . 5 4 . . 2 1 . . . . 1 . 4 . 1 Combat Bots Only 5 | . . 4 3 3 3 4 4 . 4 . 5 4 . . 2 1 . . . . 1 . 4 . 1 Max Kills in Single Turn 4 | . 1 2 3 2 1 2 1 . 1 . 1 1 . . 2 1 . . . . 1 . 4 . 1 Gunslinging 1 | . . 1 . . . . . . . . . . . . . . . . . . . . . . . Exploded 4 | . . . 1 . . 2 . . . . . . . . 2 1 . . . . . . 4 . . Melee 1 | . . . . . . . . . . . . . . . . 1 . . . . 1 . . . 1 Uniques/NPCs Destroyed . | . . . . . . . . . . . . . . . . . . . . . . . . . . Combat | -11 -10 -9 -8 -8 -7 -7 -7 -7 -6 -6 -6 -5 -5 -5 -5 -5 -5 -4 -4 -4 -4 -4 -4 -4 -3 -------- Run | Scr Mat Mat Mat Sto Fac Low Low Dat Pro Fac DSF Fac Was Fac Upp Upp Zhi Pro Fac Was Fac Upp Upp War Pro Damage Taken 12971 | . . 223 200 1228 396 705 505 . 301 . 1640 2617 210 48 189 1105 . 205 996 . 433 22 544 68 1336 Core 2572 | . . 44 20 66 26 165 123 . 42 . 197 158 93 . 30 351 . 105 566 . 55 . 235 23 273 Absorbed by Shields 575 | . . . . . 163 99 . . . . 94 219 . . . . . . . . . . . . . Redirected to Shielding 100 | . . . . . . . . . . . . . . . . . . . . . . 14 86 . . Regen/Repaired (Parts) 754 | . . . . . . . . . . . . 754 . . . . . . . . . . . . . Core Remaining (%) 74 | 100 100 89 . 84 . . . . 49 . 76 . . . . . . 26 . . . . . . . Volleys Fired 374 | . 4 14 8 95 26 32 20 . 11 . 47 102 6 . 1 7 . . . . . . 1 . . Largest 2 | . 2 2 2 2 2 2 2 . 2 . 2 2 2 . 1 1 . . . . . . 1 . . Hottest 151 | . 80 80 80 122 116 116 116 . 116 . 151 150 150 . 46 46 . . . . . . 49 . . Shots Fired 591 | . 8 26 16 170 52 35 40 . 22 . 50 151 12 . 1 7 . . . . . . 1 . . Gun 487 | . 8 26 16 170 52 26 40 . 22 . 4 106 12 . . 5 . . . . . . . . . Cannon 90 | . . . . . . . . . . . 46 44 . . . . . . . . . . . . . Launcher 14 | . . . . . . 9 . . . . . 1 . . 1 2 . . . . . . 1 . . Special . | . . . . . . . . . . . . . . . . . . . . . . . . . . Kinetic 42 | . . . . 37 . . . . . . . . . . . 5 . . . . . . . . . Thermal 449 | . . . . 119 52 26 40 . 22 . 50 128 12 . . . . . . . . . . . . Explosive 11 | . . . . . . 9 . . . . . 1 . . . . . . . . . . 1 . . Electromagnetic 89 | . 8 26 16 14 . . . . . . . 22 . . 1 2 . . . . . . . . . Robot Hit Streak 20 | . 2 4 18 20 10 11 13 . 4 . 8 13 11 . . 2 . . . . . . . . . Robot Miss Streak 5 | . 3 5 . 3 4 2 2 . 2 . 2 4 1 . . 1 . . . . . . . . . Penetration Max 1 | . . . . . . . . . . . . . . . . 1 . . . . . . . . . Secondary Targets 10 | . . 1 1 3 1 . 2 . 2 . . . . . . . . . . . . . . . . Max Gunslinging Chain 1 | . . 1 1 1 1 . 1 . 1 . . . . . . . . . . . . . . . . Shots Hit Robots 403 | . 3 15 16 118 39 20 29 . 13 . 38 90 11 1 . 6 . . . . 2 . . . 2 Core Hits 193 | . 2 5 9 47 13 20 14 . 5 . 20 42 . . 2 6 . . . . 2 . 5 . 1 Critical Kills 2 | . . . . 2 . . . . . . . . . . . . . . . . . . . . . Critical Parts Destroyed 1 | . . . . . . . . . . . . . . . . 1 . . . . . . . . . Critical Strikes 33 | . . . 1 10 3 2 5 . 2 . . 8 1 . . 1 . . . . . . . . . Burn 28 | . . . . 7 3 2 5 . 2 . . 8 1 . . . . . . . . . . . . Destroy 3 | . . . . 2 . . . . . . . . . . . 1 . . . . . . . . . Corrupt 2 | . . . 1 1 . . . . . . . . . . . . . . . . . . . . . Melee Attacks 46 | . . . . . . . . . . . . . . 1 . 9 . 3 . . 29 1 . . 3 Impact . | . . . . . . . . . . . . . . . . . . . . . . . . . . Slashing 12 | . . . . . . . . . . . . . . 1 . 8 . 3 . . . . . . . Piercing 33 | . . . . . . . . . . . . . . . . . . . . . 29 1 . . 3 Sneak Attacks 2 | . . . . . . . . . . . . . . 1 . . . . . . 1 . . . . Combat Hostiles . | . . . . . . . . . . . . . . . . . . . . . . . . . . Follow-up Attacks . | . . . . . . . . . . . . . . . . . . . . . . . . . . Damage Inflicted 10732 | . 38 162 326 2043 785 1080 600 . 248 10 1532 2645 270 46 44 272 . . . . 168 . 376 . 87 Guns 6203 | . 38 162 200 2039 785 362 600 . 248 . 70 1398 270 . . 31 . . . . . . . . . Cannons 2506 | . . . . . . . . . . . 1368 1138 . . . . . . . . . . . . . Explosions 1573 | . . . 126 . . 718 . . . . 94 68 . . 44 147 . . . . . . 376 . . Melee 374 | . . . . . . . . . . . . . . 46 . 94 . . . . 168 . . . 66 Ramming 76 | . . . . 4 . . . . . 10 . 41 . . . . . . . . . . . . 21 Kinetic 562 | . . . . 531 . . . . . . . . . . . 31 . . . . . . . . . Thermal 7427 | . . . 126 1430 785 362 600 . 248 . 1532 2074 270 . . . . . . . . . . . . Explosive 1094 | . . . . . . 718 . . . . . . . . . . . . . . . . 376 . . Electromagnetic 1199 | . 38 162 200 78 . . . . . . . 530 . . 44 147 . . . . . . . . . Impact . | . . . . . . . . . . . . . . . . . . . . . . . . . . Slashing 140 | . . . . . . . . . . . . . . 46 . 94 . . . . . . . . . Piercing 234 | . . . . . . . . . . . . . . . . . . . . . 168 . . . 66 Highest Corruption 29 | . . . . 1 . . . . . . . 7 27 27 27 27 27 29 8 15 22 22 23 23 . Average Corruption 15 | . . . . 1 . . . . . . . 3 10 27 27 27 27 27 3 13 17 22 22 23 . Corruption Purged 7 | . . . . . . . . . . . . 7 . . . . . . . . . . . . . Corruption Blocked . | . . . . . . . . . . . . . . . . . . . . . . . . . . Effects 154 | . . . . . . . . . . . . 22 8 11 15 17 5 13 4 6 36 11 5 1 . Message Errors 24 | . . . . . . . . . . . . 3 . 3 2 1 2 3 . . 6 3 1 . . Matter Fused 38 | . . . . . . . . . . . . 6 1 1 4 4 1 1 4 . 11 3 1 1 . Heat Flow Errors 17 | . . . . . . . . . . . . 3 1 . 2 1 1 2 . 1 5 1 . . . Energy Discharges 16 | . . . . . . . . . . . . 2 1 . 4 . . 2 . . 3 3 1 . . Parts Rejected 4 | . . . . . . . . . . . . . 1 . . 3 . . . . . . . . . Data Loss (minor) 21 | . . . . . . . . . . . . 6 1 2 . 2 1 2 . 1 5 1 . . . Data Loss (major) 8 | . . . . . . . . . . . . 1 . 1 1 2 . 1 . . 2 . . . . Misfires 1 | . . . . . . . . . . . . . 1 . . . . . . . . . . . . Alerts 1 | . . . . . . . . . . . . . . . . . . . . . 1 . . . . Misdirections 23 | . . . . . . . . . . . . . 2 4 2 4 . 2 . 4 3 . 2 . . Weapon Failures 1 | . . . . . . . . . . . . 1 . . . . . . . . . . . . . Overload Shots . | . . . . . . . . . . . . . . . . . . . . . . . . . . Overflow Damage 154 | . . . 40 . . 63 . . . . . 45 . 6 . . . . . . . . . . . Projectiles 37 | . . . . . . . . . . . . 37 . . . . . . . . . . . . . Explosions 103 | . . . 40 . . 63 . . . . . . . . . . . . . . . . . . . Melee 14 | . . . . . . . . . . . . 8 . 6 . . . . . . . . . . . Knockbacks . | . . . . . . . . . . . . . . . . . . . . . . . . . . Impact . | . . . . . . . . . . . . . . . . . . . . . . . . . . Kinetic . | . . . . . . . . . . . . . . . . . . . . . . . . . . Secondary . | . . . . . . . . . . . . . . . . . . . . . . . . . . Self-Inflicted Damage 247 | . . . 24 . . 86 . . . . . 110 . . 11 . . . . . . . 16 . . Shots 10 | . . . 1 . . 5 . . . . . 2 . . 1 . . . . . . . 1 . . Rammed 1 | . . . . 1 . . . . . . . . . . . . . . . . . . . . . Targets Rammed 6 | . . . . 1 . . . . . 1 . 2 . . . . . . . . . . . . 2 Kicked 5 | . . . . . . . . . . 1 . 2 . . . . . . . . . . . . 2 Crushed . | . . . . . . . . . . . . . . . . . . . . . . . . . . Highest Temperature 420 | . 54 4 4 390 52 . 16 . . . 218 420 115 5 215 201 229 123 . 119 262 117 . . . Average Temperature 72 | . 25 4 1 76 28 . 8 . . . 89 61 34 3 102 88 116 58 . 72 88 58 . . . Received Heat Transfer 2142 | . . 54 90 414 154 105 288 . 9 . 464 153 . 18 18 243 . . 27 . 18 . 21 9 57 Effects 6 | . . . . 3 . . . . . . . 3 . . . . . . . . . . . . . Energy Bleed 1 | . . . . 1 . . . . . . . . . . . . . . . . . . . . . Interference 3 | . . . . 1 . . . . . . . 2 . . . . . . . . . . . . . Damage (minor) 2 | . . . . 1 . . . . . . . 1 . . . . . . . . . . . . . Siege Activations . | . . . . . . . . . . . . . . . . . . . . . . . . . . Robots Corrupted 4 | . . 1 . . . . . . . . . 3 . . . . . . . . . . . . . Combat Hostiles 4 | . . 1 . . . . . . . . . 3 . . . . . . . . . . . . . Parts Fried 6 | . . 1 1 . . . . . . . . 4 . . . . . . . . . . . . . Impact Corruptions 1 | . . . . . . . . . . . . 1 . . . . . . . . . . . . . Robots Melted 5 | . . . . . 1 1 . . . . . 3 . . . . . . . . . . . . . Combat Hostiles 5 | . . . . . 1 1 . . . . . 3 . . . . . . . . . . . . . Parts Melted 39 | . . . . 5 9 6 6 . 1 . . 12 . . . . . . . . . . . . . Heat Transferred 12750 | . . . 150 3205 1702 851 1517 . 629 . 211 3785 700 . . . . . . . . . . . . Parts Sabotaged . | . . . . . . . . . . . . . . . . . . . . . . . . . . Parts Stolen . | . . . . . . . . . . . . . . . . . . . . . . . . . . Parts Stripped . | . . . . . . . . . . . . . . . . . . . . . . . . . . Power Chain Reactions 3 | . . . 1 . . . . . . . 1 1 . . . . . . . . . . . . . Missiles Intercepted . | . . . . . . . . . . . . . . . . . . . . . . . . . . Alert | -11 -10 -9 -8 -8 -7 -7 -7 -7 -6 -6 -6 -5 -5 -5 -5 -5 -5 -4 -4 -4 -4 -4 -4 -4 -3 ------- Run | Scr Mat Mat Mat Sto Fac Low Low Dat Pro Fac DSF Fac Was Fac Upp Upp Zhi Pro Fac Was Fac Upp Upp War Pro Peak Influence 428 | . 21 146 129 318 168 . . . . 2 220 364 122 139 . . . . 280 94 428 . . . . Initial 122 | . . 2 . 50 53 . . . . . 1 115 122 64 . . . . . 94 65 . . . . Average 119 | . 9 24 53 124 68 . . . . 1 133 212 99 93 . . . . 60 94 133 . . . . Maximum Alert Level 2 | . . . . 1 . . . . . . 1 1 . . . . . . 1 . 2 . . . . Low Security (%) 77 | 100 100 100 100 83 100 . . . . 100 53 44 100 100 . . . . 91 100 81 . . . . Level 1 22 | . . . . 16 . . . . . . 46 55 . . . . . . 8 . 16 . . . . Level 2 . | . . . . . . . . . . . . . . . . . . . . . 1 . . . . Level 3 . | . . . . . . . . . . . . . . . . . . . . . . . . . . Level 4 . | . . . . . . . . . . . . . . . . . . . . . . . . . . Level 5 . | . . . . . . . . . . . . . . . . . . . . . . . . . . High Security . | . . . . . . . . . . . . . . . . . . . . . . . . . . Max Security . | . . . . . . . . . . . . . . . . . . . . . . . . . . Sterilizations 1 | . . . . . . . . . . . 1 . . . . . . . . . . . . . . Squads Dispatched 35 | . . . . 5 2 . . . . . 2 12 . 1 . . . . 5 . 7 . 1 . . Investigation 7 | . . . . 1 1 . . . . . . 1 . . . . . . 2 . 2 . . . . Extermination 5 | . . . . . . . . . . . . 3 . . . . . . 1 . 1 . . . . Reinforcement 13 | . . . . 2 1 . . . . . 2 1 . 1 . . . . 2 . 4 . . . . Assault 3 | . . . . 2 . . . . . . . . . . . . . . . . . . 1 . . Garrison 7 | . . . . . . . . . . . . 7 . . . . . . . . . . . . . Intercept . | . . . . . . . . . . . . . . . . . . . . . . . . . . Searches Triggered . | . . . . . . . . . . . . . . . . . . . . . . . . . . Data Miner Redirects 1 | . . . . . . . . . . . . . . . . . . . . . 1 . . . . Construction Impeded . | . . . . . . . . . . . . . . . . . . . . . . . . . . Haulers Reinforced 1 | . . . . . . . . . . . . 1 . . . . . . . . . . . . . Active Scanning Responses . | . . . . . . . . . . . . . . . . . . . . . . . . . . Cargo Convoy Interrupts . | . . . . . . . . . . . . . . . . . . . . . . . . . . Stealth | -11 -10 -9 -8 -8 -7 -7 -7 -7 -6 -6 -6 -5 -5 -5 -5 -5 -5 -4 -4 -4 -4 -4 -4 -4 -3 --------- Run | Scr Mat Mat Mat Sto Fac Low Low Dat Pro Fac DSF Fac Was Fac Upp Upp Zhi Pro Fac Was Fac Upp Upp War Pro Distress Signals 4 | . . . . 2 . . . . . . . . . . . . . . 1 . 1 . . . . Communications Jammed 35 | . . . . . . . . . . . . . . . . . . . 35 . . . . . . Distress Signals 35 | . . . . . . . . . . . . . . . . . . . 35 . . . . . . Times Spotted 282 | . . 6 9 33 13 11 6 . 8 . 12 35 6 10 10 14 . 6 36 6 24 1 24 5 7 Peak Tracking Total 25 | . . 4 6 8 3 3 4 . 4 . 5 5 6 5 10 8 . 3 25 6 11 4 18 5 7 Tactical Retreats 32 | . . . . 1 . . . . . . 1 3 . 2 4 3 . . 5 . 6 3 4 . . Traps | -11 -10 -9 -8 -8 -7 -7 -7 -7 -6 -6 -6 -5 -5 -5 -5 -5 -5 -4 -4 -4 -4 -4 -4 -4 -3 ------- Run | Scr Mat Mat Mat Sto Fac Low Low Dat Pro Fac DSF Fac Was Fac Upp Upp Zhi Pro Fac Was Fac Upp Upp War Pro Traps Triggered 8 | . . . . 1 . . . . . . 1 3 . 1 . . . . 1 . 1 . . . . Indirectly . | . . . . . . . . . . . . . . . . . . . . . . . . . . Trap Hack Attempts . | . . . . . . . . . . . . . . . . . . . . . . . . . . Triggered . | . . . . . . . . . . . . . . . . . . . . . . . . . . Disarmed . | . . . . . . . . . . . . . . . . . . . . . . . . . . Reprogrammed . | . . . . . . . . . . . . . . . . . . . . . . . . . . Reused . | . . . . . . . . . . . . . . . . . . . . . . . . . . Traps Extracted . | . . . . . . . . . . . . . . . . . . . . . . . . . . Installed . | . . . . . . . . . . . . . . . . . . . . . . . . . . Triggered 12 | . . . . . . . . . . . . . . . . 1 . . . . . . 1 10 . Machines | -11 -10 -9 -8 -8 -7 -7 -7 -7 -6 -6 -6 -5 -5 -5 -5 -5 -5 -4 -4 -4 -4 -4 -4 -4 -3 ---------- Run | Scr Mat Mat Mat Sto Fac Low Low Dat Pro Fac DSF Fac Was Fac Upp Upp Zhi Pro Fac Was Fac Upp Upp War Pro Machines Disabled 6 | . . . 1 . 1 . . . . . 1 1 . . . . . . . . 2 . . . . Max in Single Turn 1 | . . . 1 . 1 . . . . . 1 1 . . . . . . . . . . . . . Garrison Access 1 | . . . . . 1 . . . . . . . . . . . . . . . . . . . . Machines Sabotaged . | . . . . . . . . . . . . . . . . . . . . . . . . . . Garrisons Compromised . | . . . . . . . . . . . . . . . . . . . . . . . . . . Overloaded Fab Kills . | . . . . . . . . . . . . . . . . . . . . . . . . . . Hacking | -11 -10 -9 -8 -8 -7 -7 -7 -7 -6 -6 -6 -5 -5 -5 -5 -5 -5 -4 -4 -4 -4 -4 -4 -4 -3 --------- Run | Scr Mat Mat Mat Sto Fac Low Low Dat Pro Fac DSF Fac Was Fac Upp Upp Zhi Pro Fac Was Fac Upp Upp War Pro Machines Accessed 48 | . 3 4 1 4 8 . . 4 . 2 . 4 . . . . 4 . 4 . 7 . . 3 . Terminals 26 | . 3 3 1 4 5 . . . . 1 . 1 . . . . . . 4 . 4 . . . . Fabricators 2 | . . . . . . . . . . . . 1 . . . . . . . . 1 . . . . Repair Stations 1 | . . . . . . . . . . . . 1 . . . . . . . . . . . . . Recycling Units 2 | . . . . . 1 . . . . . . . . . . . . . . . 1 . . . . Scanalyzers 4 | . . 1 . . 1 . . . . 1 . 1 . . . . . . . . . . . . . Garrison Access 2 | . . . . . 1 . . . . . . . . . . . . . . . 1 . . . . Total Hacks 149 | . 5 8 1 12 20 . . 29 . 5 . 19 . . . . 17 . 8 . 19 . . 6 . Successful 94 | . 3 2 . 4 10 . . 29 . 4 . 14 . . . . 17 . . . 5 . . 6 . Failed 55 | . 2 6 1 8 10 . . . . 1 . 5 . . . . . . 8 . 14 . . . . Catastrophic 20 | . 1 1 1 2 3 . . . . . . 2 . . . . . . 6 . 4 . . . . Database Lockouts . | . . . . . . . . . . . . . . . . . . . . . . . . . . Manual 39 | . 1 6 1 4 6 . . . . . . 1 . . . . . . 5 . 14 . . 1 . Terminals 64 | . 5 7 1 12 16 . . . . 1 . 1 . . . . . . 8 . 13 . . . . Fabricators 10 | . . . . . . . . . . . . 7 . . . . . . . . 3 . . . . Repair Stations 8 | . . . . . . . . . . . . 8 . . . . . . . . . . . . . Recycling Units 3 | . . . . . 1 . . . . . . . . . . . . . . . 2 . . . . Scanalyzers 10 | . . 1 . . 2 . . . . 4 . 3 . . . . . . . . . . . . . Garrison Access 2 | . . . . . 1 . . . . . . . . . . . . . . . 1 . . . . Terminal Hacks 68 | . 3 1 . 4 4 . . 29 . 1 . . . . . . 17 . . . 3 . . 6 . Record 16 | . . . . . . . . 11 . . . . . . . . 5 . . . . . . . . Part Schematic 18 | . . . . . 3 . . 11 . . . . . . . . 4 . . . . . . . . Robot Schematic 4 | . . . . . . . . 4 . . . . . . . . . . . . . . . . . Robot Analysis 4 | . . . . . . . . . . . . . . . . . 4 . . . . . . . . Prototype ID Bank 11 | . . . . . . . . 3 . . . . . . . . 4 . . . . . . 4 . Open Door 3 | . . . . 1 . . . . . . . . . . . . . . . . . . . 2 . Open DSF 1 | . . . . . . . . . . 1 . . . . . . . . . . . . . . . Branch Access Points 3 | . 1 . . . 1 . . . . . . . . . . . . . . . 1 . . . . Unreport Threat 4 | . 1 . . 2 . . . . . . . . . . . . . . . . 1 . . . . Locate Traps 1 | . . 1 . . . . . . . . . . . . . . . . . . . . . . . Recall Investigation 1 | . . . . . . . . . . . . . . . . . . . . . 1 . . . . Hauler Manifests 1 | . . . . 1 . . . . . . . . . . . . . . . . . . . . . Zone Layout 1 | . 1 . . . . . . . . . . . . . . . . . . . . . . . . Fabricator Hacks 8 | . . . . . . . . . . . . 6 . . . . . . . . 2 . . . . Load Schematic 4 | . . . . . . . . . . . . 3 . . . . . . . . 1 . . . . Build 4 | . . . . . . . . . . . . 3 . . . . . . . . 1 . . . . Repair Station Hacks 6 | . . . . . . . . . . . . 6 . . . . . . . . . . . . . Scan Component 3 | . . . . . . . . . . . . 3 . . . . . . . . . . . . . Repair 3 | . . . . . . . . . . . . 3 . . . . . . . . . . . . . Recycling Unit Hacks 1 | . . . . . 1 . . . . . . . . . . . . . . . . . . . . Retrieve Components 1 | . . . . . 1 . . . . . . . . . . . . . . . . . . . . Scanalyzer 8 | . . 1 . . 2 . . . . 3 . 2 . . . . . . . . . . . . . Insert Component 5 | . . 1 . . 1 . . . . 2 . 1 . . . . . . . . . . . . . Analyze 3 | . . . . . 1 . . . . 1 . 1 . . . . . . . . . . . . . Garrison Access Hacks 1 | . . . . . 1 . . . . . . . . . . . . . . . . . . . . Seal Access 1 | . . . . . 1 . . . . . . . . . . . . . . . . . . . . Unauthorized Hacks 2 | . . . . . 2 . . . . . . . . . . . . . . . . . . . . Terminals 2 | . . . . . 2 . . . . . . . . . . . . . . . . . . . . Assimilate 1 | . . . . . 1 . . . . . . . . . . . . . . . . . . . . Botnet 1 | . . . . . 1 . . . . . . . . . . . . . . . . . . . . Fabricators . | . . . . . . . . . . . . . . . . . . . . . . . . . . Repair Stations . | . . . . . . . . . . . . . . . . . . . . . . . . . . Recycling Units . | . . . . . . . . . . . . . . . . . . . . . . . . . . Scanalyzers . | . . . . . . . . . . . . . . . . . . . . . . . . . . Garrison Access . | . . . . . . . . . . . . . . . . . . . . . . . . . . Data Cores Recovered . | . . . . . . . . . . . . . . . . . . . . . . . . . . Used . | . . . . . . . . . . . . . . . . . . . . . . . . . . Hacking Detections 31 | . 3 3 1 3 5 . . . . 1 . 4 . . . . . . 4 . 7 . . . . Full Trace Events 7 | . . . . 1 1 . . . . . . 1 . . . . . . 2 . 2 . . . . Feedback Events . | . . . . . . . . . . . . . . . . . . . . . . . . . . Feedback Blocked . | . . . . . . . . . . . . . . . . . . . . . . . . . . Robot Schematics Acquired 4 | . . . . . . . . 4 . . . . . . . . . . . . . . . . . Robots Built . | . . . . . . . . . . . . . . . . . . . . . . . . . . Authchips . | . . . . . . . . . . . . . . . . . . . . . . . . . . Time . | . . . . . . . . . . . . . . . . . . . . . . . . . . Total Robot Build Rating . | . . . . . . . . . . . . . . . . . . . . . . . . . . Part Schematics Acquired 21 | . . . . . 4 . . 11 . 1 . 1 . . . . 4 . . . . . . . . Parts Built 4 | . . . . . . . . . . . . 3 . . . . . . . . 1 . . . . Authchips 4 | . . . . . . . . . . . . 3 . . . . . . . . 1 . . . . Time 315 | . . . . . . . . . . . . 128 . . . . . . . . 187 . . . . Total Part Build Rating 21 | . . . . . . . . . . . . 14 . . . . . . . . 7 . . . . Parts Repaired 3 | . . . . . . . . . . . . 3 . . . . . . . . . . . . . Time 114 | . . . . . . . . . . . . 114 . . . . . . . . . . . . . Parts Recycled . | . . . . . . . . . . . . . . . . . . . . . . . . . . Recycled Matter . | . . . . . . . . . . . . . . . . . . . . . . . . . . Retrieved Matter . | . . . . . . . . . . . . . . . . . . . . . . . . . . Retrieved Components 6 | . . . . . 6 . . . . . . . . . . . . . . . . . . . . Parts Scanalyzed 3 | . . . . . 1 . . . . 1 . 1 . . . . . . . . . . . . . Part Schematics Acquired 3 | . . . . . 1 . . . . 1 . 1 . . . . . . . . . . . . . Parts Damaged . | . . . . . . . . . . . . . . . . . . . . . . . . . . Bothacking | -11 -10 -9 -8 -8 -7 -7 -7 -7 -6 -6 -6 -5 -5 -5 -5 -5 -5 -4 -4 -4 -4 -4 -4 -4 -3 ------------ Run | Scr Mat Mat Mat Sto Fac Low Low Dat Pro Fac DSF Fac Was Fac Upp Upp Zhi Pro Fac Was Fac Upp Upp War Pro Used RIF Installer . | . . . . . . . . . . . . . . . . . . . . . . . . . . Robots Hacked 1 | . . . . . . . . . . . . . . . . 1 . . . . . . . . . Non-combat . | . . . . . . . . . . . . . . . . . . . . . . . . . . Combat 1 | . . . . . . . . . . . . . . . . 1 . . . . . . . . . Robot Hacks Applied 1 | . . . . . . . . . . . . . . . . 1 . . . . . . . . . parse_system 1 | . . . . . . . . . . . . . . . . 1 . . . . . . . . . Relay Couplers Released . | . . . . . . . . . . . . . . . . . . . . . . . . . . Fabnet Peak Effective % . | . . . . . . . . . . . . . . . . . . . . . . . . . . Robots Rewired . | . . . . . . . . . . . . . . . . . . . . . . . . . . Allies Hacked . | . . . . . . . . . . . . . . . . . . . . . . . . . . Hacks Repelled . | . . . . . . . . . . . . . . . . . . . . . . . . . . Allies | -11 -10 -9 -8 -8 -7 -7 -7 -7 -6 -6 -6 -5 -5 -5 -5 -5 -5 -4 -4 -4 -4 -4 -4 -4 -3 -------- Run | Scr Mat Mat Mat Sto Fac Low Low Dat Pro Fac DSF Fac Was Fac Upp Upp Zhi Pro Fac Was Fac Upp Upp War Pro Total Allies 5 | . . . . 2 1 . . . 1 . . . . . . . . . . . . . 1 . . Largest Group 2 | . . . . 2 1 . . . 1 . . . . . . . . . . . . . 1 . . Highest-Rated Group 167 | . . . . 62 10 . . . 96 . . . . . . . . . . . . . 167 . . Highest-Rated Ally 167 | . . . . 31 10 . . . 96 . . . . . . . . . . . . . 167 . . Total Orders 5 | . . . . . . . . . . . . . . . . . . . . . 1 4 . . . ROAM 1 | . . . . . . . . . . . . . . . . . . . . . . 1 . . . RETURN 4 | . . . . . . . . . . . . . . . . . . . . . 1 3 . . . Ally Attacks 46 | . . . . 21 . . . . 5 . . . . . . . . . . . 15 1 . . 4 Total Damage 1335 | . . . . 399 . . . . 559 . . . . . . . . . . . 286 21 . . 70 Kills 13 | . . . . 4 . . . . 4 . . . . . . . . . . . 5 . . . . Allies Corrupted . | . . . . . . . . . . . . . . . . . . . . . . . . . . Allies Melted . | . . . . . . . . . . . . . . . . . . . . . . . . . . Intel | -11 -10 -9 -8 -8 -7 -7 -7 -7 -6 -6 -6 -5 -5 -5 -5 -5 -5 -4 -4 -4 -4 -4 -4 -4 -3 ------- Run | Scr Mat Mat Mat Sto Fac Low Low Dat Pro Fac DSF Fac Was Fac Upp Upp Zhi Pro Fac Was Fac Upp Upp War Pro Robot Analysis Total 4 | . . . . . . . . . . . . . . . . . 4 . . . . . . . . Derelict Logs Recovered 9 | . . . . . . 1 . . 2 . . . . . 3 2 . 1 . . . . . . . Drone Launches 8 | . . . . . . . . . . . . . . . . . . . . . 2 4 . . 2 Drone Recoveries 6 | . . . . . . . . . . . . . . . . . . . . . 2 4 . . . Exploration | -11 -10 -9 -8 -8 -7 -7 -7 -7 -6 -6 -6 -5 -5 -5 -5 -5 -5 -4 -4 -4 -4 -4 -4 -4 -3 ------------- Run | Scr Mat Mat Mat Sto Fac Low Low Dat Pro Fac DSF Fac Was Fac Upp Upp Zhi Pro Fac Was Fac Upp Upp War Pro Turns Passed 9790 | 91 209 523 131 931 760 845 671 97 422 148 317 1686 123 170 244 238 110 274 307 56 812 239 80 269 37 Spaces Moved 8722 | 52 115 272 59 316 480 585 476 78 307 116 126 729 153 242 366 264 140 330 652 128 1377 458 183 685 33 Core 477 | 7 . . . . . . . . . . . . 142 12 . . . 17 299 . . . . . . Treads 844 | 44 115 272 59 316 . . . . . . . 27 11 . . . . . . . . . . . . Legs 2885 | 1 . . . . 480 585 476 78 307 116 126 702 . . . . . . . . . . . . 14 Wheels . | . . . . . . . . . . . . . . . . . . . . . . . . . . Hover 1322 | . . . . . . . . . . . . . . 230 366 264 140 313 . . . . . . 9 Flight 3194 | . . . . . . . . . . . . . . . . . . . 353 128 1377 458 183 685 10 Fastest Speed 28 | 50 160 160 170 153 130 130 125 125 120 120 120 110 50 58 58 58 70 50 34 37 32 37 35 28 28 Average Speed 82 | 144 160 166 170 160 130 130 126 125 122 120 128 118 60 60 58 64 70 68 42 37 36 41 39 33 63 Slowest Speed 260 | 160 160 170 170 170 130 130 130 125 125 120 260 240 160 100 58 70 70 70 50 40 39 202 42 37 100 Overloaded Moves . | . . . . . . . . . . . . . . . . . . . . . . . . . . Propulsion Burnouts . | . . . . . . . . . . . . . . . . . . . . . . . . . . Robots Hopped 32 | . . . . . . . . . . . . . . . . . . . 22 . 8 . . . 2 Cave-ins Triggered . | . . . . . . . . . . . . . . . . . . . . . . . . . . Exploration Rate (%) 45 | 5 24 20 7 52 15 71 69 68 46 3 88 16 85 6 70 53 61 58 23 82 39 55 55 96 7 Regions Visited 25 Branch Regions 13 Pre-discovered Areas 6 | . . . . . . 1 . 1 1 . . . . . . . 3 . . . . . . . . Known Exits Taken 7 | . . . . . 1 . . . . 1 . . . . 1 . . . . . 1 1 1 1 . Unknown Exits Taken 13 | 1 1 1 1 1 . 1 1 1 1 . . . . 1 . 1 1 1 . . . . . . . Scrap Searched 19 | . . . . . . 3 2 . 4 . . . . . 3 1 . 3 . . . 3 . . . Spaces Dug 104 | . . . . . . 57 . . . . . 3 . . . . . 3 . . 26 1 14 . . Terrain Destroyed 152 | . . . 3 . . 74 . . . . 17 14 . . . . . 3 . . 26 1 14 . . Melee 30 | . . . . . . . . . . . . . . . . . . 3 . . 26 1 . . . Projectile 15 | . . . . . . . . . . . 9 6 . . . . . . . . . . . . . AOE 107 | . . . 3 . . 74 . . . . 8 8 . . . . . . . . . . 14 . . Terrain Rammed . | . . . . . . . . . . . . . . . . . . . . . . . . . . Walls Destroyed . | . . . . . . . . . . . . . . . . . . . . . . . . . . Machines Disabled . | . . . . . . . . . . . . . . . . . . . . . . . . . . Actions | -11 -10 -9 -8 -8 -7 -7 -7 -7 -6 -6 -6 -5 -5 -5 -5 -5 -5 -4 -4 -4 -4 -4 -4 -4 -3 --------- Run | Scr Mat Mat Mat Sto Fac Low Low Dat Pro Fac DSF Fac Was Fac Upp Upp Zhi Pro Fac Was Fac Upp Upp War Pro Total 10582 | 65 133 324 74 578 569 635 506 77 334 124 221 1388 171 263 396 307 151 371 658 134 1635 511 189 724 44 Wait 982 | 1 . . 3 115 31 . 5 . . 4 4 471 2 8 20 21 . 37 19 . 210 25 2 4 . Move 8643 | 51 114 271 58 315 479 584 475 77 306 115 125 729 152 241 365 263 139 329 615 127 1360 457 182 684 30 Hop 24 | . . . . . . . . . . . . . . . . . . . 15 . 8 . . . 1 Pick Up 126 | 5 7 17 1 7 9 6 3 . 6 1 13 25 1 1 2 . 3 . . 1 . 7 . 11 . Fast Attach 126 | 7 2 2 1 15 2 2 . . 1 . 9 19 3 5 2 5 4 . 8 4 19 2 2 12 . Attach 64 | . . 6 1 1 6 2 3 . 3 2 4 9 5 2 3 . 2 . . . . 5 1 4 5 Detach 15 | 1 . 1 . 1 1 . . . . . . 1 . 1 2 . . . . . . 3 1 2 1 Swap 36 | . 1 1 1 7 4 4 . . . 1 3 11 . . . 2 . . . . . 1 . . . Drop 134 | . 5 12 1 21 11 5 . . 7 . 11 19 2 4 1 . 3 1 1 2 9 10 . 7 2 Fire 374 | . 4 14 8 95 26 32 20 . 11 . 47 102 6 . 1 7 . . . . . . 1 . . Melee 46 | . . . . . . . . . . . . . . 1 . 9 . 3 . . 29 1 . . 3 Ram 1 | . . . . . . . . . . . . . . . . . . 1 . . . . . . . Kick 5 | . . . . . . . . . . 1 . 2 . . . . . . . . . . . . 2 Crush 1 | . . . . 1 . . . . . . . . . . . . . . . . . . . . . Escape Stasis 5 | . . . . . . . . . . . 5 . . . . . . . . . . . . . . Rewire . | . . . . . . . . . . . . . . . . . . . . . . . . . . Trap . | . . . . . . . . . . . . . . . . . . . . . . . . . . Miscellaneous . | . . . . . . . . . . . . . . . . . . . . . . . . . . Route ------- -11/Scrapyard -10/Materials (discovered 3 exits: *Mat / Min x2) -9/Materials -8/Materials -8/Storage -7/Factory (discovered 2 exits: *Low x2) -7/Lower Caves -7/Lower Caves (discovered 2 exits: *Fac / *Dat) -7/Data Miner -6/Proximity Caves -6/Factory -6/DSF -5/Factory -5/Waste -5/Factory (discovered 2 exits: *Fac / [*Upp]) -5/Upper Caves -5/Upper Caves -5/Zhirov -4/Proximity Caves -4/Factory (discovered 2 exits: *Res x2) -4/Waste -4/Factory (discovered 6 exits: *Res / *Upp x2 / Ext x2 / Arm) -4/Upper Caves -4/Upper Caves (discovered 2 exits: *Res / *War) -4/Warlord -3/Proximity Caves History --------- Turn | Location | Event 6 | -11/Scrapyard | Discovered new exit (range 15) 92 | -11/Scrapyard | Entered Materials 250 | -10/Materials | Identified exit to Mines 294 | -10/Materials | Discovered new exit (range 4) 301 | -10/Materials | Entered another Materials area 301 | -9/Materials | Evolved 2 slots: Propulsion x1, Utility x1 323 | -9/Materials | Build established: Mutant 769 | -9/Materials | Discovered new exit (range 10) 824 | -9/Materials | Entered another Materials area 824 | -8/Materials | Evolved 2 slots: Propulsion x1, Utility x1 931 | -8/Materials | Discovered new exit (range 13) 955 | -8/Materials | Entered Storage 1104 | -8/Storage | Met a pair of Derelict thieves 1847 | -8/Storage | Discovered new exit (range 16) 1886 | -8/Storage | Entered Factory 1886 | -7/Factory | Evolved 2 slots: Utility x2 2520 | -7/Factory | Identified exit to Lower Caves 2646 | -7/Factory | Entered Lower Caves 2678 | -7/Lower Caves | Spotted B-75 Beast 2893 | -7/Lower Caves | Attracted the attention of an 0b10 checkpoint 3205 | -7/Lower Caves | Discovered new exit (range 14) 3491 | -7/Lower Caves | Entered another Lower Caves area 3603 | -7/Lower Caves | Discovered new exit (range 7) 4095 | -7/Lower Caves | Discovered new exit (range 9) 4162 | -7/Lower Caves | Entered Data Miner 4162 | -7/Data Miner | Discovered new exit (range 6) 4186 | -7/Data Miner | Met Data Miner 4209 | -7/Data Miner | Learned location of Section 7 (-2) 4209 | -7/Data Miner | Acquired the access code to Warlord's prototype stash 4231 | -7/Data Miner | Received God Mode back door access code from Data Miner 4259 | -7/Data Miner | Entered Proximity Caves 4287 | -6/Proximity Caves | Escorted by Enhanced Grunt 4362 | -6/Proximity Caves | Learned 8 Factory zone layouts 4460 | -6/Proximity Caves | Core integrity fell below 50% 4643 | -6/Proximity Caves | Learned location of Zion (-6) 4662 | -6/Proximity Caves | Discovered new exit (range 11) 4681 | -6/Proximity Caves | Entered Factory 4681 | -6/Factory | Evolved 2 slots: Utility x2 4826 | -6/Factory | Identified exit to DSF 4829 | -6/Factory | Entered DSF 4871 | -6/DSF | Additional patrols routed to DSF 4907 | -6/DSF | Lost 4 parts (1n2u1w) 4981 | -6/DSF | Lost 5 parts (3n2u) 4987 | -6/DSF | Sterilization system engaged 5007 | -6/DSF | Ambient heat levels rising (+10) 5022 | -6/DSF | Ambient heat levels rising (+10) 5037 | -6/DSF | Ambient heat levels rising (+10) 5052 | -6/DSF | Ambient heat levels rising (+10) 5067 | -6/DSF | Ambient heat levels rising (+10) 5082 | -6/DSF | Ambient heat levels rising (+10) 5097 | -6/DSF | Ambient heat levels rising (+10) 5112 | -6/DSF | Ambient heat levels rising (+10) 5112 | -6/DSF | Discovered new exit (range 16) 5127 | -6/DSF | Ambient heat levels rising (+10) 5142 | -6/DSF | Ambient heat levels rising (+10) 5146 | -6/DSF | Entered Factory 5146 | -5/Factory | Evolved 2 slots: Propulsion x1, Utility x1 5232 | -5/Factory | Repaired Hrd. Heavy Armor Plating 5260 | -5/Factory | Repaired Lrg. Storage Unit 5337 | -5/Factory | Repaired Imp. Cooling System 5591 | -5/Factory | Garrison activated, responded to threat 5669 | -5/Factory | Build established: Scavenger-Mutant 5694 | -5/Factory | Lost 3 parts (2u1w) 5954 | -5/Factory | Fabricated Exp. Targeting Computer (x1) 5983 | -5/Factory | Fabricated Hrd. Heavy Armor Plating (x1) 6044 | -5/Factory | Fabricated Exp. Targeting Computer (x1) 6246 | -5/Factory | Discovered new exit (range 6) 6472 | -5/Factory | Garrison activated, responded to threat 6775 | -5/Factory | Garrison activated, responded to threat 6832 | -5/Factory | Sucked down chute 6832 | -5/Factory | Entered Waste 6834 | -5/Waste | Spotted C-40 Crusher 6838 | -5/Waste | Lost 7 parts (1p3n3u) 6844 | -5/Waste | Spotted C-40 Crusher 6847 | -5/Waste | EMP discharged 6847 | -5/Waste | System corruption reached 10% 6859 | -5/Waste | Crushed by Compactor (1 part destroyed, 1 dropped) 6862 | -5/Waste | Crushed by Compactor (1 part destroyed, 2 dropped) 6865 | -5/Waste | Crushed by Compactor (1 part destroyed, 1 dropped) 6871 | -5/Waste | Spotted C-40 Crusher 6883 | -5/Waste | Spotted C-40 Crusher 6889 | -5/Waste | Spotted C-40 Crusher 6896 | -5/Waste | Lost 3 parts (3n) 6904 | -5/Waste | Spotted C-40 Crusher 6934 | -5/Waste | Discovered new exit (range 12) 6947 | -5/Waste | EMP discharged 6955 | -5/Waste | Entered Factory 7002 | -5/Factory | Discovered new exit (range 21) 7083 | -5/Factory | Found Hvy. Reflective Plating 7087 | -5/Factory | Found Hvy. Reflective Plating 7089 | -5/Factory | Found Hvy. Reflective Plating 7110 | -5/Factory | Build established: Mutant 7114 | -5/Factory | Discovered new exit (range 13) 7125 | -5/Factory | Entered Upper Caves 7139 | -5/Upper Caves | Learned Factory emergency access door positions 7187 | -5/Upper Caves | Attracted the attention of an 0b10 base 7197 | -5/Upper Caves | Learned Factory emergency access door positions 7313 | -5/Upper Caves | Encountered a Warlord checkpoint 7325 | -5/Upper Caves | Identified exit to Upper Caves 7369 | -5/Upper Caves | Entered another Upper Caves area 7500 | -5/Upper Caves | Lost 4 parts (1p2u1w) 7522 | -5/Upper Caves | Core integrity fell below 50% 7560 | -5/Upper Caves | Learned Factory emergency access door positions 7561 | -5/Upper Caves | Learned Factory emergency access door positions 7592 | -5/Upper Caves | Discovered new exit (range 13) 7597 | -5/Upper Caves | Attracted the attention of an 0b10 checkpoint 7607 | -5/Upper Caves | Entered Zhirov 7607 | -5/Zhirov | Discovered new exit (range 3) 7620 | -5/Zhirov | Met Zhirov 7636 | -5/Zhirov | Learned location of Quarantine (-3) 7636 | -5/Zhirov | Learned location of Testing (-2) 7636 | -5/Zhirov | Learned location of Command (-1) 7640 | -5/Zhirov | Zhirov requested help retrieving the SGEMP Prototype 7652 | -5/Zhirov | Found Alien Artifact 7652 | -5/Zhirov | Identified Integrated Reactor 7652 | -5/Zhirov | Installed Integrated Reactor, increased core energy generation (+10) 7690 | -5/Zhirov | Found Alien Artifact 7717 | -5/Zhirov | Entered Proximity Caves 7808 | -4/Proximity Caves | Learned Research stockpile data 7958 | -4/Proximity Caves | Build established: Hacker-Mutant 7989 | -4/Proximity Caves | Discovered new exit (range 5) 7991 | -4/Proximity Caves | Entered Factory 7991 | -4/Factory | Evolved 2 slots: Propulsion x1, Utility x1 8020 | -4/Factory | Lost 3 parts (1n2u) 8151 | -4/Factory | Discovered new exit (range 6) 8286 | -4/Factory | Build established: Mutant 8288 | -4/Factory | Discovered new exit (range 11) 8297 | -4/Factory | Identified exit to Research 8298 | -4/Factory | Manually triggered Chute Trap 8298 | -4/Factory | Sucked down chute 8298 | -4/Factory | Entered Waste 8313 | -4/Waste | EMP discharged 8313 | -4/Waste | System corruption reached 10% 8315 | -4/Waste | Spotted C-40 Crusher 8327 | -4/Waste | Spotted C-40 Crusher 8332 | -4/Waste | Spotted C-40 Crusher 8336 | -4/Waste | Spotted C-40 Crusher 8340 | -4/Waste | Spotted C-40 Crusher 8345 | -4/Waste | Spotted C-40 Crusher 8347 | -4/Waste | Discovered new exit (range 13) 8354 | -4/Waste | Identified exit to Factory 8354 | -4/Waste | Entered Factory 8359 | -4/Factory | Found Unknown Device 8359 | -4/Factory | Identified Quantum Capacitor 8874 | -4/Factory | Fabricated Assault Drone Bay (x1) 9021 | -4/Factory | Discovered exit to Research (range 13) 9032 | -4/Factory | Core integrity fell below 50% 9094 | -4/Factory | Incoming investigation squad redirected 9143 | -4/Factory | Identified exit to Upper Caves 9143 | -4/Factory | Identified exit to Extension 9143 | -4/Factory | Identified exit to Armory 9166 | -4/Factory | Entered Upper Caves 9262 | -4/Upper Caves | Spotted B-86 Titan 9403 | -4/Upper Caves | Discovered new exit (range 5) 9404 | -4/Upper Caves | Identified exit to Upper Caves 9405 | -4/Upper Caves | Entered another Upper Caves area 9410 | -4/Upper Caves | Attracted the attention of an 0b10 checkpoint 9410 | -4/Upper Caves | Attracted the attention of an 0b10 outpost 9411 | -4/Upper Caves | Discovered exit to Research (range 4) 9481 | -4/Upper Caves | Discovered new exit (range 9) 9484 | -4/Upper Caves | Identified exit to Warlord 9485 | -4/Upper Caves | Entered Warlord 9493 | -4/Warlord | Lost 3 parts (2n1u) 9498 | -4/Warlord | System corruption cleaned by Quarantine Array 9632 | -4/Warlord | Met Warlord 9636 | -4/Warlord | Opened Warlord's prototype stash 9644 | -4/Warlord | Found Prototype Reactor 9649 | -4/Warlord | Found Prototype Device 9649 | -4/Warlord | Identified Exp. Focal Shield 9651 | -4/Warlord | Found Prototype Processor 9651 | -4/Warlord | Identified Exp. Armor Integrity Analyzer 9657 | -4/Warlord | Warlord's base attacked by MAIN.C 9660 | -4/Warlord | Found Exp. Targeting Computer 9693 | -4/Warlord | Found Prototype Energy Cannon 9693 | -4/Warlord | Identified Vortex Cannon 9698 | -4/Warlord | Found Vortex Cannon 9733 | -4/Warlord | Opened side exit 9752 | -4/Warlord | Discovered new exit (range 8) 9754 | -4/Warlord | Identified exit to Proximity Caves 9754 | -4/Warlord | Entered Proximity Caves 9756 | -3/Proximity Caves | Attracted the attention of an 0b10 checkpoint 9765 | -3/Proximity Caves | Core integrity fell below 20% 9791 | -3/Proximity Caves | Destroyed by S-43 Plague with Heavy Machine Gun Last Messages --------------- 09765_ S-43 Plague destroyed. 09769_ Acquired 34 matter. 09770_ Xenon Bombardment Thruster fries itself beyond repair. 09774_ Discarded Core Analyzer. 09775_ Xenon Bombardment Thruster fries itself beyond repair. 09775_ Discarded Core Analyzer. 09776_ S-43 Plague destroyed. 09777_ Assault Drone released from Assault Drone Bay. 09778_ Slug penetrates G-67 Veteran. 09778_ Slug penetrates Wall. 09779_ Slug penetrates G-67 Veteran. 09780_ Assault Drone Bay destroyed. 09780_ >> Lost connection to Assault Drone. 09781_ Lgt. Antimatter Reactor fries itself beyond repair. 09781_ >> Lost connection to Assault Drone. 09784_ Lance destroyed. 09786_ Kicked S-43 Plague. 09787_ Xenon Bombardment Thruster fries itself beyond repair. 09787_ Kicked S-43 Plague out of the way. 09790_ Electron Diverter destroyed. Map ----- +----------------------------------------------------+ | ??????????????????????""?????????????????????????? | | ??????????????????????? ?????????????????????????? | | ??????????????????????? ????????????????????????? | | ???????????????????????# ????????????????????????? | | ???????????????????????? #???????????????????????? | | ???????????????????????? ????##?????????????????? | | ????????????????????????? #??# ##????????????????? | | ????????????????????????? ## #????????????????? | | ????????????????????????? #####????????????? | | ?????????????????????????? ##???????????? | | ?????????????????##??????? #####???????? | | ?????????????????? ??????? ????????? | | ?????????????????? ??????? #?????????? | | ??????????????????? ??????? #?????????? | | ???????????????????# ??????# $ #?????????? | | ???????????????????# ????### #?????????? | | ???????????????????# ??## #?????????? | | ??????????????????## ??# ##????????? | | ??????????????????# ?# #???????? | | ??????????????????# ## ## #? | | ??????????????????# #????? | | ??????????????????## ####?????????#### #? | | ?????????????????### #""##?????????????????????? | | ?????????????????#; ###??????????????????????? | | ??????????????????# ######??????????????????? | | ??????????????????## @ ##?????????????????? | | ???????????????????# Yssn ##????????????????? | | ???????????????????## ## gn ##???????????????? | | ????????????????????# ?#;s ###?????????????? | | ??????????????????? ?## #?????????????? | | ?????????????????? ??## #?????????????? | | ?????????????????#?####???# ## ####?????????????? | | ??????????????????????????#######????????????????? | | ?????????????????????????????????????????????????? | | ?????????????????????????????????????????????????? | | ?????????????????????????????????????????????????? | | ?????????????????????????????????????????????????? | | ?????????????????????????????????????????????????? | | ?????????????????????????????????????????????????? | | ?????????????????????????????????????????????????? | | ?????????????????????????????????????????????????? | | ?????????????????????????????????????????????????? | | ?????????????????????????????????????????????????? | | ?????????????????????????????????????????????????? | | ?????????????????????????????????????????????????? | | ?????????????????????????????????????????????????? | | ?????????????????????????????????????????????????? | | ?????????????????????????????????????????????????? | | ?????????????????????????????????????????????????? | | ?????????????????????????????????????????????????? | +----------------------------------------------------+ Best States ------------- Heat Dissipation 91 Energy Generation 31 Energy Capacity 500 Matter Stores 300 Matter Capacity 300 Sight Range 22 Robot Scan Range 15 Terrain Scan Range 20 Terrain Scan Density 110 ECM Strength 2 Jamming Range 16 Power Amplification 20 Armor Coverage 750 Resistance: KI 30 Resistance: TH 25 Propulsion Shielding 66 Weapon Shielding 33 Evasion (%) 71 Targeting Accuracy 30 Launcher Accuracy 30 Target Analysis 6 Core Analysis 9 Armor Integrity Analysis 50 Recoil Reduction 4 Particle Charging 30 Offensive Hacking 11 Defensive Hacking 14 Authchip Count 8 Item Schematics ----------------- Kinecellerator | -7/Factory | Hacked Imp. Terrain Scan Processor | -7/Factory | Scanalyzed Adv. Signal Interpreter | -7/Factory | Hacked Point Defense System | -7/Factory | Hacked Combat Drone Bay | -7/Data Miner | Free Lgt. Regenerative Plating | -7/Data Miner | Free Cld. Aerolev Unit | -7/Data Miner | Free Exp. Targeting Computer | -7/Data Miner | Free Com. Ion Cannon | -7/Data Miner | Free Antigrav System | -7/Data Miner | Free Imp. Recalibrator | -7/Data Miner | Free Variable Charge Gun | -7/Data Miner | Free Imp. Corruption Screen | -7/Data Miner | Free Impulse Thruster | -7/Data Miner | Free Mic. Fission Core | -7/Data Miner | Free Hrd. Heavy Armor Plating | -6/Factory | Scanalyzed Adv. Shield Generator | -5/Factory | Scanalyzed Assault Drone Bay | -5/Zhirov | Free Exp. Heat Sink | -5/Zhirov | Free Exp. Optical Array | -5/Zhirov | Free Imp. Arc Thrower | -5/Zhirov | Free Robot Schematics ------------------ S-27 Virus | -7/Data Miner | Free L-41 Fighter | -7/Data Miner | Free G-47 Trooper | -7/Data Miner | Free P-70 Sage | -7/Data Miner | Free Fabricated ------------ Exp. Targeting Computer | x1 | -5/Factory | Authchip Hrd. Heavy Armor Plating | x1 | -5/Factory | Authchip Exp. Targeting Computer | x1 | -5/Factory | Authchip Assault Drone Bay | x1 | -4/Factory | Authchip Alien Tech Used ----------------- Integrated Reactor Achievements -------------- None Challenges ------------ None Game ------ Seed LaserLightLog Manual? 0 Play Time 01:44:33 Cumulative 310.0 hours Start 2022.04.08 @ 01:12:47 End 2022.04.08 @ 23:55:14 Sessions 6 Manual Loads 0 Difficulty Rogue Special Mode None Game No. 340 Rogue 340 Adventurer 0 Explorer 0 Win Type - Total 17 Types 11/2/2/2/0/0/0/0/0 Lore% 88 Gallery% 83 Achievement% 73 Wizard Run 0 Options --------- ASCII 0 Keyboard 0 Movement Arrows Keybinds 0 Fullscreen 1 Font 18/Smallcaps Map View 76x50 Tactical HUD 1 Map Filters NONE Filters NONE Steam 1 RUN: f27f1fe2-0dda-44cd-a66d-6c346175ad02